Workbook

Sheet Calculador
A1: Pontos Anuais | C1: Pontos Mensais | M1: Cálculos
A2: =12*13 -> 156 | C2: =A2/12 -> 13
K5: Pontos a Devolver | O5: Progressão 1 | S5: Progressão 2 | X5: Progressão 3 | AC5: Progressão 4 | AH5: Progressão 5 | AN5: Soma
B6: Inicial/Entrad. | C6: Progr. 1 | D6: Progr. 2 | E6: Progr. 3 | F6: Progr. 4 | G6: Progr. 5 | H6: Pts Ult. Prog. | I6: Pts Data Act. | M6: Pont. Inic. | N6: Fact. Poup. | O6: Meses | P6: Pts Cred. | Q6: Pts Rem. | R6: Pts Retir. | S6: Meses | T6: Pts Cred. | U6: Pts Rem. | W6: Pts Retir. | X6: Meses | Y6: Pts Cred. | Z6: Pts Rem. | AB6: Pts Retir. | AC6: Meses | AD6: Pts Cred. | AE6: Pts Rem. | AG6: Pts Retir. | AH6: Meses | AI6: Pts Cred. | AJ6: Pts Rem. | AL6: Pts Retir.
A7: Piloto A | B7: 2005-01-01 | C7: 2010-01-01 | D7: 2015-01-01 | E7: 2020-01-01 | H7: 822 | I7: FALSE | K7: =AN7 -> 1004.999688 | M7: =Q7-P7*N7 -> 11.999454 | N7: 0.6000001 | O7: =IF(LEN($C7)>0,DATEDIF($B7,$C7,"m"),"") -> 60 | P7: =IF(LEN(O7)>0,O7*$C$2,"") -> 780 | Q7: =IF(R7>0,R7*2,"") -> 479.999532 | R7: =IF(LEN($D7)>0,U7-T7*$N7,IF(LEN($C7)>0,H7/2,0)) -> 239.999766 | S7: =IF(LEN($D7)>0,DATEDIF($C7,$D7,"m"),"") -> 60 | T7: =IF(LEN(S7)>0,S7*$C$2,"") -> 780 | U7: =IF(V7>0,V7*2,"") -> 707.999844 | V7: =IF(LEN($E7)>0,Z7-Y7*$N7,IF(LEN($D7)>0,H7/2,0)) -> 353.999922 | W7: =IF(AND(I7,LEN(Z7)=0),0,IF(LEN($E7)>0,Z7-Y7*$N7,IF(LEN($D7)>0,H7/2,0))) -> 353.999922 | X7: =IF(LEN($E7)>0,DATEDIF($D7,$E7,"m"),"") -> 60 | Y7: =IF(LEN(X7)>0,X7*$C$2,"") -> 780 | Z7: =IF(AA7>0,AA7*2,"") -> 822 | AA7: =IF(LEN($F7)>0,AE7-AD7*$N7,IF(LEN($E7)>0,H7/2,0)) -> 411 | AB7: =IF(AND(I7,LEN(AE7)=0),0,IF(LEN($F7)>0,AE7-AD7*$N7,IF(LEN($E7)>0,H7/2,0))) -> 411 | AC7: =IF(LEN($F7)>0,DATEDIF($E7,$F7,"m"),"") ->  | AD7: =IF(LEN(AC7)>0,AC7*$C$2,"") ->  | AE7: =IF(AF7>0,AF7*2,"") ->  | AF7: =IF(LEN($G7)>0,AJ7-AI7*$N7,IF(LEN($F7)>0,H7/2,0)) -> 0 | AG7: =IF(AND(I7,LEN(AJ7)=0),0,IF(LEN($G7)>0,AJ7-AI7*$N7,IF(LEN($F7)>0,H7/2,0))) -> 0 | AH7: =IF(LEN($G7)>0,DATEDIF($F7,$G7,"m"),"") ->  | AI7: =IF(LEN(AH7)>0,AH7*$C$2,"") ->  | AJ7: =IF(AK7>0,AK7*2,"") ->  | AK7: =IF(LEN($G7)>0,H7/2,0) -> 0 | AL7: =IF(I7,0,IF(LEN($G7)>0,H7/2,0)) -> 0 | AN7: =R7+W7+AB7+AG7+AL7 -> 1004.999688
A8: Piloto B | B8: 2005-01-01 | C8: 2010-01-01 | D8: 2015-01-01 | H8: 708 | I8: FALSE | K8: 593.999922 | M8: 11.999766 | N8: 0.6000001 | O8: 60 | P8: 780 | Q8: =IF(R8>0,R8*2,"") -> 479.999844 | R8: =IF(LEN($D8)>0,U8-T8*$N8,IF(LEN($C8)>0,H8/2,0)) -> 239.999922 | S8: 60 | T8: 780 | U8: =IF(V8>0,V8*2,"") -> 708 | V8: =IF(LEN($E8)>0,Z8-Y8*$N8,IF(LEN($D8)>0,H8/2,0)) -> 354 | W8: =IF(AND(I8,LEN(Z8)=0),0,IF(LEN($E8)>0,Z8-Y8*$N8,IF(LEN($D8)>0,H8/2,0))) -> 354 | Z8: =IF(AA8>0,AA8*2,"") ->  | AA8: =IF(LEN($F8)>0,AE8-AD8*$N8,IF(LEN($E8)>0,H8/2,0)) -> 0 | AB8: =IF(AND(I8,LEN(AE8)=0),0,IF(LEN($F8)>0,AE8-AD8*$N8,IF(LEN($E8)>0,H8/2,0))) -> 0 | AE8: =IF(AF8>0,AF8*2,"") ->  | AF8: =IF(LEN($G8)>0,AJ8-AI8*$N8,IF(LEN($F8)>0,H8/2,0)) -> 0 | AG8: =IF(AND(I8,LEN(AJ8)=0),0,IF(LEN($G8)>0,AJ8-AI8*$N8,IF(LEN($F8)>0,H8/2,0))) -> 0 | AJ8: =IF(AK8>0,AK8*2,"") ->  | AK8: =IF(LEN($G8)>0,H8/2,0) -> 0 | AL8: =IF(I8,0,IF(LEN($G8)>0,H8/2,0)) -> 0 | AN8: 593.999922
A9: Piloto C | B9: 2005-01-01 | C9: 2015-01-01 | H9: 948 | I9: FALSE | K9: =AN9 -> 474 | M9: =Q9-P9*N9 -> 11.999844 | N9: 0.6000001 | O9: 120 | P9: 1560 | Q9: 948 | R9: 474 | V9: 0 | W9: 0 | AA9: 0 | AB9: 0 | AF9: 0 | AG9: 0 | AK9: 0 | AL9: 0 | AN9: =R9+W9+AB9+AG9+AL9 -> 474
A10: Piloto D | B10: 2005-01-01 | C10: 2010-01-01 | D10: 2015-01-01 | E10: 2020-01-01 | F10: 2025-08-01 | H10: 933.6 | I10: TRUE | K10: 1004.999078 | M10: 11.9987572 | N10: 0.6000001 | O10: 60 | P10: 780 | Q10: 479.9988352 | R10: 239.9994176 | S10: 60 | T10: 780 | U10: 707.9994956 | V10: 353.9997478 | W10: 353.9997478 | X10: 60 | Y10: 780 | Z10: 821.9998258 | AA10: 410.9999129 | AB10: 410.9999129 | AC10: 67 | AD10: 871 | AE10: 933.6 | AF10: 466.8 | AG10: 0 | AK10: 0 | AL10: 0 | AN10: 1004.999078
A11: Piloto E | B11: 2005-01-01 | C11: 2010-01-01 | D11: 2015-01-01 | E11: 2025-08-01 | H11: 1344.6 | I11: TRUE | K11: 593.9994267 | M11: 11.9991056 | N11: 0.6000001 | O11: 60 | P11: 780 | Q11: 479.9991836 | R11: 239.9995918 | S11: 60 | T11: 780 | U11: 707.9996698 | V11: 353.9998349 | W11: 353.9998349 | X11: 127 | Y11: 1651 | Z11: 1344.6 | AA11: 672.3 | AB11: 0 | AF11: 0 | AG11: 0 | AK11: 0 | AL11: 0 | AN11: 593.9994267
A12: Piloto F | B12: 2005-01-01 | C12: 2012-01-01 | D12: 2015-01-01 | E12: 2025-08-01 | H12: 1297.8 | I12: TRUE | K12: 640.7994579 | M12: 11.9991368 | N12: 0.6000001 | O12: 84 | P12: 1092 | Q12: =IF(R12>0,R12*2,"") -> 667.199246 | R12: 333.599623 | S12: 36 | T12: 468 | U12: 614.3996698 | V12: 307.1998349 | W12: 307.1998349 | X12: 127 | Y12: 1651 | Z12: 1297.8 | AA12: 648.9 | AB12: 0 | AF12: 0 | AG12: 0 | AK12: 0 | AL12: 0 | AN12: 640.7994579
A13: Piloto G | B13: 2005-01-01 | C13: 2015-01-01 | D13: 2025-08-01 | H13: 1464.6 | I13: TRUE | K13: 473.9998349 | M13: 11.9995138 | N13: 0.6000001 | O13: 120 | P13: 1560 | Q13: 947.9996698 | R13: 473.9998349 | S13: 127 | T13: 1651 | U13: 1464.6 | V13: 732.3 | W13: 0 | AA13: 0 | AB13: 0 | AF13: 0 | AG13: 0 | AK13: 0 | AL13: 0 | AN13: 473.9998349
A14: Piloto H | B14: 2018-01-01 | C14: 2019-01-01 | D14: 2025-08-01 | H14: 669 | I14: TRUE | K14: 52.7998973 | M14: 11.999779 | N14: 0.6000001 | O14: 12 | P14: 156 | Q14: 105.5997946 | R14: 52.7998973 | S14: 79 | T14: 1027 | U14: 669 | V14: 334.5 | W14: 0 | AA14: 0 | AB14: 0 | AF14: 0 | AG14: 0 | AK14: 0 | AL14: 0 | AN14: 52.7998973
A15: Piloto I | B15: 2018-01-01 | C15: 2024-01-01 | D15: 2025-08-01 | H15: 435 | I15: TRUE | K15: 286.7999753 | M15: 11.999857 | N15: 0.6000001 | O15: 72 | P15: 936 | Q15: 573.5999506 | R15: 286.7999753 | S15: 19 | T15: 247 | U15: 435 | V15: 217.5 | W15: 0 | AA15: 0 | AB15: 0 | AF15: 0 | AG15: 0 | AK15: 0 | AL15: 0 | AN15: 286.7999753
A16: Piloto J | B16: 2018-01-01 | C16: 2024-01-01 | D16: 2025-08-01 | H16: 163.3 | I16: TRUE | K16: 108.96 | M16: 12 | N16: 0.22 | O16: 72 | P16: 936 | Q16: 217.92 | R16: 108.96 | S16: 19 | T16: 247 | U16: 163.3 | V16: 81.65 | W16: 0 | AA16: 0 | AB16: 0 | AF16: 0 | AG16: 0 | AK16: 0 | AL16: 0 | AN16: 108.96
A17: Piloto K | B17: 2018-01-01 | C17: 2024-01-01 | D17: 2025-08-01 | H17: 513 | I17: TRUE | K17: 337.854523 | M17: 11.99987 | N17: 0.709091 | O17: 72 | P17: 936 | Q17: 675.709046 | R17: 337.854523 | S17: 19 | T17: 247 | U17: 513 | V17: 256.5 | W17: 0 | AA17: 0 | AB17: 0 | AF17: 0 | AG17: 0 | AK17: 0 | AL17: 0 | AN17: 337.854523
A18: Piloto L | B18: 2007-05-01 | C18: 2014-07-01 | D18: 2019-02-01 | E18: 2025-08-01 | H18: 1340 | I18: TRUE | K18: =AN18 -> 977.5351889 | M18: =Q18-P18*N18 -> 11.9995708 | N18: 0.8098123 | O18: 86 | P18: 1118 | Q18: 917.3697222 | R18: 458.6848611 | S18: 55 | T18: 715 | U18: 1037.700656 | V18: 518.8503278 | W18: 518.8503278 | X18: 78 | Y18: 1014 | Z18: 1340 | AA18: 670 | AB18: 0 | AF18: 0 | AG18: 0 | AK18: 0 | AL18: 0 | AN18: =R18+W18+AB18+AG18+AL18 -> 977.5351889
A19: Piloto M | B19: 2007-05-01 | C19: 2014-07-01 | D19: 2019-02-01 | E19: 2025-08-01 | H19: 1046 | I19: TRUE | K19: =AN19 -> 764.5588312 | M19: =Q19-P19*N19 -> 11.9996064 | N19: 0.6317384 | O19: 86 | P19: 1118 | Q19: 718.2831376 | R19: 359.1415688 | S19: 55 | T19: 715 | U19: 810.8345248 | V19: 405.4172624 | W19: 405.4172624 | X19: 78 | Y19: 1014 | Z19: 1046 | AA19: 523 | AB19: 0 | AF19: 0 | AG19: 0 | AK19: 0 | AL19: 0 | AN19: 764.5588312
A20: Piloto N | B20: 2007-05-01 | C20: 2013-07-01 | D20: 2018-02-01 | E20: 2025-08-01 | H20: 1167 | I20: TRUE | K20: 719.3821025 | M20: =Q20-P20*N20 -> 11.9995808 | N20: 0.6583711 | O20: 74 | P20: 962 | Q20: 645.352579 | R20: 322.6762895 | S20: 55 | T20: 715 | U20: 793.411626 | V20: 396.705813 | W20: 396.705813 | X20: 90 | Y20: 1170 | Z20: 1167 | AA20: 583.5 | AB20: 0 | AF20: 0 | AG20: 0 | AK20: 0 | AL20: 0 | AN20: 719.3821025
A21: Piloto O | B21: 2007-05-01 | C21: 2013-07-01 | D21: 2017-02-01 | E21: 2019-12-01 | F21: 2025-08-01 | H21: 976 | I21: TRUE | K21: =AN21 -> 1068.527877 | M21: 11.99906 | N21: 0.7139195 | O21: 74 | P21: 962 | Q21: 698.789619 | R21: 349.3948095 | S21: 43 | T21: 559 | U21: 748.47581 | V21: 374.237905 | W21: 374.237905 | X21: 34 | Y21: 442 | Z21: 689.790324 | AA21: 344.895162 | AB21: 344.895162 | AC21: 68 | AD21: 884 | AE21: 976 | AF21: 488 | AG21: 0 | AK21: 0 | AL21: 0 | AN21: 1068.527877
A22: Piloto P | B22: 2007-05-01 | C22: 2013-07-01 | D22: 2017-02-01 | E22: 2019-12-01 | F22: 2025-08-01 | H22: 1209 | I22: TRUE | K22: 1321.499876 | M22: 11.999832 | N22: 0.8846154 | O22: 74 | P22: 962 | Q22: 862.9998468 | R22: 431.4999234 | S22: 43 | T22: 559 | U22: 925.999932 | V22: 462.999966 | W22: 462.999966 | X22: 34 | Y22: 442 | Z22: 853.9999728 | AA22: 426.9999864 | AB22: 426.9999864 | AC22: 68 | AD22: 884 | AE22: 1209 | AF22: 604.5 | AG22: 0 | AK22: 0 | AL22: 0 | AN22: 1321.499876
A23: Piloto Q | B23: 2006-03-01 | C23: 2012-04-01 | D23: 2015-09-01 | E23: 2019-12-01 | F23: 2025-08-01 | H23: 1280 | I23: TRUE | K23: 1371.118102 | M23: 11.9994718 | N23: 0.8712838 | O23: 73 | P23: 949 | Q23: 838.847798 | R23: 419.423899 | S23: 41 | T23: 533 | U23: 883.8181644 | V23: 441.9090822 | W23: 441.9090822 | X23: 51 | Y23: 663 | Z23: 1019.570242 | AA23: 509.7851208 | AB23: 509.7851208 | AC23: 68 | AD23: 884 | AE23: 1280 | AF23: 640 | AG23: 0 | AK23: 0 | AL23: 0 | AN23: 1371.118102
A24: Piloto R | B24: 2006-03-01 | C24: 2012-04-01 | D24: 2016-09-01 | E24: 2025-08-01 | H24: 1481 | I24: TRUE | K24: 800.350704 | M24: 11.999672 | N24: 0.749208 | O24: 73 | P24: 949 | Q24: 722.998064 | R24: 361.499032 | S24: 53 | T24: 689 | U24: 877.703344 | V24: 438.851672 | W24: 438.851672 | X24: 107 | Y24: 1391 | Z24: 1481 | AA24: 740.5 | AB24: 0 | AF24: 0 | AG24: 0 | AK24: 0 | AL24: 0 | AN24: 800.350704
A25: Piloto S | B25: 2006-03-01 | C25: 2013-04-01 | D25: 2017-09-01 | E25: 2025-08-01 | H25: 1608 | I25: TRUE | K25: 1023.719477 | M25: 11.9994715 | N25: 0.8648795 | O25: 85 | P25: 1105 | Q25: 967.691319 | R25: 483.8456595 | S25: 53 | T25: 689 | U25: 1079.747635 | V25: 539.8738175 | W25: 539.8738175 | X25: 95 | Y25: 1235 | Z25: 1608 | AA25: 804 | AB25: 0 | AF25: 0 | AG25: 0 | AK25: 0 | AL25: 0 | AN25: 1023.719477
A26: Piloto T | B26: 2006-03-01 | C26: 2014-04-01 | D26: 2025-08-01 | H26: 1973 | I26: TRUE | K26: 523.0704488 | M26: 11.9999677 | N26: 0.8200959 | O26: 97 | P26: 1261 | Q26: 1046.140898 | R26: 523.0704488 | S26: 136 | T26: 1768 | U26: 1973 | V26: 986.5 | W26: 0 | AA26: 0 | AB26: 0 | AF26: 0 | AG26: 0 | AK26: 0 | AL26: 0 | AN26: 523.0704488
K27: 0 | N27: 0 | R27: 0 | V27: 0 | W27: 0 | AA27: 0 | AB27: 0 | AF27: 0 | AG27: 0 | AK27: 0 | AL27: 0 | AN27: 0
K28: 0 | N28: 0 | R28: 0 | V28: 0 | W28: 0 | AA28: 0 | AB28: 0 | AF28: 0 | AG28: 0 | AK28: 0 | AL28: 0 | AN28: 0
K29: 0 | N29: 0 | R29: 0 | V29: 0 | W29: 0 | AA29: 0 | AB29: 0 | AF29: 0 | AG29: 0 | AK29: 0 | AL29: 0 | AN29: 0
K30: 0 | N30: 0 | R30: 0 | V30: 0 | W30: 0 | AA30: 0 | AB30: 0 | AF30: 0 | AG30: 0 | AK30: 0 | AL30: 0 | AN30: 0
K31: 0 | N31: 0 | R31: 0 | V31: 0 | W31: 0 | AA31: 0 | AB31: 0 | AF31: 0 | AG31: 0 | AK31: 0 | AL31: 0 | AN31: 0
K32: 0 | N32: 0 | R32: 0 | V32: 0 | W32: 0 | AA32: 0 | AB32: 0 | AF32: 0 | AG32: 0 | AK32: 0 | AL32: 0 | AN32: 0
K33: 0 | N33: 0 | R33: 0 | V33: 0 | W33: 0 | AA33: 0 | AB33: 0 | AF33: 0 | AG33: 0 | AK33: 0 | AL33: 0 | AN33: 0
K34: 0 | M34: =Q34-P34*N34 ->  | N34: 0 | R34: 0 | V34: 0 | W34: 0 | AA34: 0 | AB34: 0 | AF34: 0 | AG34: 0 | AK34: 0 | AL34: 0 | AN34: 0
K35: 0 | N35: 0 | R35: 0 | V35: 0 | W35: 0 | AA35: 0 | AB35: 0 | AF35: 0 | AG35: 0 | AK35: 0 | AL35: 0 | AN35: 0
K36: 0 | N36: 0 | R36: 0 | V36: 0 | W36: 0 | AA36: 0 | AB36: 0 | AF36: 0 | AG36: 0 | AK36: 0 | AL36: 0 | AN36: 0
K37: 0 | N37: 0 | O37: =IF(LEN($C37)>0,DATEDIF($B37,$C37,"m"),"") ->  | P37: =IF(LEN(O37)>0,O37*$C$2,"") ->  | Q37: =IF(R37>0,R37*2,"") ->  | R37: =IF(LEN($D37)>0,U37-T37*$N37,IF(LEN($C37)>0,H37/2,0)) -> 0 | S37: =IF(LEN($D37)>0,DATEDIF($C37,$D37,"m"),"") ->  | T37: =IF(LEN(S37)>0,S37*$C$2,"") ->  | U37: =IF(V37>0,V37*2,"") ->  | V37: =IF(LEN($E37)>0,Z37-Y37*$N37,IF(LEN($D37)>0,H37/2,0)) -> 0 | W37: =IF(AND(I37,LEN(Z37)=0),0,IF(LEN($E37)>0,Z37-Y37*$N37,IF(LEN($D37)>0,H37/2,0))) -> 0 | X37: =IF(LEN($E37)>0,DATEDIF($D37,$E37,"m"),"") ->  | Y37: =IF(LEN(X37)>0,X37*$C$2,"") ->  | Z37: =IF(AA37>0,AA37*2,"") ->  | AA37: =IF(LEN($F37)>0,AE37-AD37*$N37,IF(LEN($E37)>0,H37/2,0)) -> 0 | AB37: =IF(AND(I37,LEN(AE37)=0),0,IF(LEN($F37)>0,AE37-AD37*$N37,IF(LEN($E37)>0,H37/2,0))) -> 0 | AC37: =IF(LEN($F37)>0,DATEDIF($E37,$F37,"m"),"") ->  | AD37: =IF(LEN(AC37)>0,AC37*$C$2,"") ->  | AE37: =IF(AF37>0,AF37*2,"") ->  | AF37: =IF(LEN($G37)>0,AJ37-AI37*$N37,IF(LEN($F37)>0,H37/2,0)) -> 0 | AG37: =IF(AND(I37,LEN(AJ37)=0),0,IF(LEN($G37)>0,AJ37-AI37*$N37,IF(LEN($F37)>0,H37/2,0))) -> 0 | AH37: =IF(LEN($G37)>0,DATEDIF($F37,$G37,"m"),"") ->  | AI37: =IF(LEN(AH37)>0,AH37*$C$2,"") ->  | AJ37: =IF(AK37>0,AK37*2,"") ->  | AK37: =IF(LEN($G37)>0,H37/2,0) -> 0 | AL37: =IF(I37,0,IF(LEN($G37)>0,H37/2,0)) -> 0 | AN37: 0
K38: 0 | N38: 0 | R38: 0 | V38: 0 | W38: 0 | AA38: 0 | AB38: 0 | AF38: 0 | AG38: 0 | AK38: 0 | AL38: 0
K39: 0 | N39: 0 | R39: 0 | V39: 0 | W39: 0 | AA39: 0 | AB39: 0 | AF39: 0 | AG39: 0 | AK39: 0 | AL39: 0
K40: 0 | N40: 0 | R40: 0 | V40: 0 | W40: 0 | AA40: 0 | AB40: 0 | AF40: 0 | AG40: 0 | AK40: 0 | AL40: 0
K41: 0 | N41: 0 | R41: 0 | V41: 0 | W41: 0 | AA41: 0 | AB41: 0 | AF41: 0 | AG41: 0 | AK41: 0 | AL41: 0
K42: 0 | N42: 0 | R42: 0 | V42: 0 | W42: 0 | AA42: 0 | AB42: 0 | AF42: 0 | AG42: 0 | AK42: 0 | AL42: 0
K43: 0 | N43: 0 | R43: 0 | V43: 0 | W43: 0 | AA43: 0 | AB43: 0 | AF43: 0 | AG43: 0 | AK43: 0 | AL43: 0
K44: 0 | N44: 0 | R44: 0 | V44: 0 | W44: 0 | AA44: 0 | AB44: 0 | AF44: 0 | AG44: 0 | AK44: 0 | AL44: 0
K45: 0 | N45: 0 | R45: 0 | V45: 0 | W45: 0 | AA45: 0 | AB45: 0 | AF45: 0 | AG45: 0 | AK45: 0 | AL45: 0
K46: 0 | N46: 0 | R46: 0 | V46: 0 | W46: 0 | AA46: 0 | AB46: 0 | AF46: 0 | AG46: 0 | AK46: 0 | AL46: 0
K47: 0 | N47: 0 | R47: 0 | V47: 0 | W47: 0 | AA47: 0 | AB47: 0 | AF47: 0 | AG47: 0 | AK47: 0 | AL47: 0
K48: 0 | N48: 0 | R48: 0 | V48: 0 | W48: 0 | AA48: 0 | AB48: 0 | AF48: 0 | AG48: 0 | AK48: 0 | AL48: 0
K49: 0 | M49: =Q49-P49*N49 ->  | N49: 0 | R49: 0 | V49: 0 | W49: 0 | AA49: 0 | AB49: 0 | AF49: 0 | AG49: 0 | AK49: 0 | AL49: 0
K50: 0 | N50: 0 | R50: 0 | V50: 0 | W50: 0 | AA50: 0 | AB50: 0 | AF50: 0 | AG50: 0 | AK50: 0 | AL50: 0
K51: 0 | N51: 0 | R51: 0 | V51: 0 | W51: 0 | AA51: 0 | AB51: 0 | AF51: 0 | AG51: 0 | AK51: 0 | AL51: 0
K52: 0 | N52: 0 | R52: 0 | V52: 0 | W52: 0 | AA52: 0 | AB52: 0 | AF52: 0 | AG52: 0 | AK52: 0 | AL52: 0
K53: 0 | N53: 0 | R53: 0 | V53: 0 | W53: 0 | AA53: 0 | AB53: 0 | AF53: 0 | AG53: 0 | AK53: 0 | AL53: 0
K54: 0 | N54: 0 | R54: 0 | V54: 0 | W54: 0 | AA54: 0 | AB54: 0 | AF54: 0 | AG54: 0 | AK54: 0 | AL54: 0
K55: 0 | N55: 0 | R55: 0 | V55: 0 | W55: 0 | AA55: 0 | AB55: 0 | AF55: 0 | AG55: 0 | AK55: 0 | AL55: 0
K56: 0 | N56: 0 | R56: 0 | V56: 0 | W56: 0 | AA56: 0 | AB56: 0 | AF56: 0 | AG56: 0 | AK56: 0 | AL56: 0
K57: 0 | N57: 0 | R57: 0 | V57: 0 | W57: 0 | AA57: 0 | AB57: 0 | AF57: 0 | AG57: 0 | AK57: 0 | AL57: 0
K58: 0 | N58: 0 | R58: 0 | V58: 0 | W58: 0 | AA58: 0 | AB58: 0 | AF58: 0 | AG58: 0 | AK58: 0 | AL58: 0
K59: 0 | N59: 0 | R59: 0 | V59: 0 | W59: 0 | AA59: 0 | AB59: 0 | AF59: 0 | AG59: 0 | AK59: 0 | AL59: 0
K60: 0 | N60: 0 | R60: 0 | V60: 0 | W60: 0 | AA60: 0 | AB60: 0 | AF60: 0 | AG60: 0 | AK60: 0 | AL60: 0
K61: 0 | N61: 0 | R61: 0 | V61: 0 | W61: 0 | AA61: 0 | AB61: 0 | AF61: 0 | AG61: 0 | AK61: 0 | AL61: 0
K62: 0 | N62: 0 | R62: 0 | V62: 0 | W62: 0 | AA62: 0 | AB62: 0 | AF62: 0 | AG62: 0 | AK62: 0 | AL62: 0
K63: 0 | N63: 0 | R63: 0 | V63: 0 | W63: 0 | AA63: 0 | AB63: 0 | AF63: 0 | AG63: 0 | AK63: 0 | AL63: 0
K64: 0 | N64: 0 | R64: 0 | V64: 0 | W64: 0 | AA64: 0 | AB64: 0 | AF64: 0 | AG64: 0 | AK64: 0 | AL64: 0
K65: 0 | N65: 0 | R65: 0 | V65: 0 | W65: 0 | AA65: 0 | AB65: 0 | AF65: 0 | AG65: 0 | AK65: 0 | AL65: 0
K66: 0 | N66: 0 | R66: 0 | V66: 0 | W66: 0 | AA66: 0 | AB66: 0 | AF66: 0 | AG66: 0 | AK66: 0 | AL66: 0
K67: 0 | N67: 0 | R67: 0 | V67: 0 | W67: 0 | AA67: 0 | AB67: 0 | AF67: 0 | AG67: 0 | AK67: 0 | AL67: 0
K68: 0 | N68: 0 | R68: 0 | V68: 0 | W68: 0 | AA68: 0 | AB68: 0 | AF68: 0 | AG68: 0 | AK68: 0 | AL68: 0
K69: 0 | N69: 0 | R69: 0 | V69: 0 | W69: 0 | AA69: 0 | AB69: 0 | AF69: 0 | AG69: 0 | AK69: 0 | AL69: 0
K70: 0 | N70: 0 | R70: 0 | V70: 0 | W70: 0 | AA70: 0 | AB70: 0 | AF70: 0 | AG70: 0 | AK70: 0 | AL70: 0
K71: 0 | N71: 0 | R71: 0 | V71: 0 | W71: 0 | AA71: 0 | AB71: 0 | AF71: 0 | AG71: 0 | AK71: 0 | AL71: 0
K72: 0 | N72: 0 | R72: 0 | V72: 0 | W72: 0 | AA72: 0 | AB72: 0 | AF72: 0 | AG72: 0 | AK72: 0 | AL72: 0
K73: 0 | N73: 0 | R73: 0 | V73: 0 | W73: 0 | AA73: 0 | AB73: 0 | AF73: 0 | AG73: 0 | AK73: 0 | AL73: 0
K74: 0 | N74: 0 | R74: 0 | V74: 0 | W74: 0 | AA74: 0 | AB74: 0 | AF74: 0 | AG74: 0 | AK74: 0 | AL74: 0
K75: 0 | N75: 0 | R75: 0 | V75: 0 | W75: 0 | AA75: 0 | AB75: 0 | AF75: 0 | AG75: 0 | AK75: 0 | AL75: 0
K76: 0 | N76: 0 | R76: 0 | V76: 0 | W76: 0 | AA76: 0 | AB76: 0 | AF76: 0 | AG76: 0 | AK76: 0 | AL76: 0
K77: 0 | N77: 0 | R77: 0 | V77: 0 | W77: 0 | AA77: 0 | AB77: 0 | AF77: 0 | AG77: 0 | AK77: 0 | AL77: 0
K78: 0 | N78: 0 | R78: 0 | V78: 0 | W78: 0 | AA78: 0 | AB78: 0 | AF78: 0 | AG78: 0 | AK78: 0 | AL78: 0
K79: 0 | N79: 0 | R79: 0 | V79: 0 | W79: 0 | AA79: 0 | AB79: 0 | AF79: 0 | AG79: 0 | AK79: 0 | AL79: 0
K80: 0 | N80: 0 | R80: 0 | V80: 0 | W80: 0 | AA80: 0 | AB80: 0 | AF80: 0 | AG80: 0 | AK80: 0 | AL80: 0
K81: 0 | N81: 0 | R81: 0 | V81: 0 | W81: 0 | AA81: 0 | AB81: 0 | AF81: 0 | AG81: 0 | AK81: 0 | AL81: 0
K82: 0 | N82: 0 | O82: =IF(LEN($C82)>0,DATEDIF($B82,$C82,"m"),"") ->  | R82: 0 | S82: =IF(LEN($D82)>0,DATEDIF($C82,$D82,"m"),"") ->  | U82: =IF(V82>0,V82*2,"") ->  | V82: 0 | W82: 0 | X82: =IF(LEN($E82)>0,DATEDIF($D82,$E82,"m"),"") ->  | Z82: =IF(AA82>0,AA82*2,"") ->  | AA82: 0 | AB82: 0 | AC82: =IF(LEN($F82)>0,DATEDIF($E82,$F82,"m"),"") ->  | AE82: =IF(AF82>0,AF82*2,"") ->  | AF82: 0 | AG82: 0 | AH82: =IF(LEN($G82)>0,DATEDIF($F82,$G82,"m"),"") ->  | AJ82: =IF(AK82>0,AK82*2,"") ->  | AK82: 0 | AL82: 0
K83: =AN83 -> 0 | N83: 0 | P83: =IF(LEN(O83)>0,O83*$C$2,"") ->  | Q83: =IF(R83>0,R83*2,"") ->  | R83: =IF(LEN($D83)>0,U83-T83*$N83,IF(LEN($C83)>0,H83/2,0)) -> 0 | T83: =IF(LEN(S83)>0,S83*$C$2,"") ->  | V83: =IF(LEN($E83)>0,Z83-Y83*$N83,IF(LEN($D83)>0,H83/2,0)) -> 0 | W83: =IF(AND(I83,LEN(Z83)=0),0,IF(LEN($E83)>0,Z83-Y83*$N83,IF(LEN($D83)>0,H83/2,0))) -> 0 | Y83: =IF(LEN(X83)>0,X83*$C$2,"") ->  | AA83: =IF(LEN($F83)>0,AE83-AD83*$N83,IF(LEN($E83)>0,H83/2,0)) -> 0 | AB83: =IF(AND(I83,LEN(AE83)=0),0,IF(LEN($F83)>0,AE83-AD83*$N83,IF(LEN($E83)>0,H83/2,0))) -> 0 | AD83: =IF(LEN(AC83)>0,AC83*$C$2,"") ->  | AF83: =IF(LEN($G83)>0,AJ83-AI83*$N83,IF(LEN($F83)>0,H83/2,0)) -> 0 | AG83: =IF(AND(I83,LEN(AJ83)=0),0,IF(LEN($G83)>0,AJ83-AI83*$N83,IF(LEN($F83)>0,H83/2,0))) -> 0 | AI83: =IF(LEN(AH83)>0,AH83*$C$2,"") ->  | AK83: =IF(LEN($G83)>0,H83/2,0) -> 0 | AL83: =IF(I83,0,IF(LEN($G83)>0,H83/2,0)) -> 0
K84: 0 | N84: 0 | R84: 0 | V84: 0 | W84: 0 | AA84: 0 | AB84: 0 | AF84: 0 | AG84: 0 | AK84: 0 | AL84: 0
K85: 0 | N85: 0 | R85: 0 | V85: 0 | W85: 0 | AA85: 0 | AB85: 0 | AF85: 0 | AG85: 0 | AK85: 0 | AL85: 0
K86: 0 | N86: 0 | R86: 0 | V86: 0 | W86: 0 | AA86: 0 | AB86: 0 | AF86: 0 | AG86: 0 | AK86: 0 | AL86: 0
K87: 0 | N87: 0 | R87: 0 | V87: 0 | W87: 0 | AA87: 0 | AB87: 0 | AF87: 0 | AG87: 0 | AK87: 0 | AL87: 0
K88: 0 | N88: 0 | R88: 0 | V88: 0 | W88: 0 | AA88: 0 | AB88: 0 | AF88: 0 | AG88: 0 | AK88: 0 | AL88: 0
K89: 0 | N89: 0 | R89: 0 | V89: 0 | W89: 0 | AA89: 0 | AB89: 0 | AF89: 0 | AG89: 0 | AK89: 0 | AL89: 0
K90: 0 | N90: 0 | R90: 0 | V90: 0 | W90: 0 | AA90: 0 | AB90: 0 | AF90: 0 | AG90: 0 | AK90: 0 | AL90: 0
K91: 0 | N91: 0 | R91: 0 | V91: 0 | W91: 0 | AA91: 0 | AB91: 0 | AF91: 0 | AG91: 0 | AK91: 0 | AL91: 0
K92: 0 | N92: 0 | R92: 0 | V92: 0 | W92: 0 | AA92: 0 | AB92: 0 | AF92: 0 | AG92: 0 | AK92: 0 | AL92: 0
K93: 0 | N93: 0 | R93: 0 | V93: 0 | W93: 0 | AA93: 0 | AB93: 0 | AF93: 0 | AG93: 0 | AK93: 0 | AL93: 0
K94: 0 | N94: 0 | R94: 0 | V94: 0 | W94: 0 | AA94: 0 | AB94: 0 | AF94: 0 | AG94: 0 | AK94: 0 | AL94: 0
K95: 0 | N95: 0 | R95: 0 | V95: 0 | W95: 0 | AA95: 0 | AB95: 0 | AF95: 0 | AG95: 0 | AK95: 0 | AL95: 0
K96: 0 | N96: 0 | R96: 0 | V96: 0 | W96: 0 | AA96: 0 | AB96: 0 | AF96: 0 | AG96: 0 | AK96: 0 | AL96: 0
K97: 0 | N97: 0 | R97: 0 | V97: 0 | W97: 0 | AA97: 0 | AB97: 0 | AF97: 0 | AG97: 0 | AK97: 0 | AL97: 0
K98: 0 | N98: 0 | R98: 0 | V98: 0 | W98: 0 | AA98: 0 | AB98: 0 | AF98: 0 | AG98: 0 | AK98: 0 | AL98: 0
K99: 0 | N99: 0 | R99: 0 | V99: 0 | W99: 0 | AA99: 0 | AB99: 0 | AF99: 0 | AG99: 0 | AK99: 0 | AL99: 0
K100: 0 | N100: 0 | R100: 0 | V100: 0 | W100: 0 | AA100: 0 | AB100: 0 | AF100: 0 | AG100: 0 | AK100: 0 | AL100: 0
K101: 0 | N101: 0 | R101: 0 | V101: 0 | W101: 0 | AA101: 0 | AB101: 0 | AF101: 0 | AG101: 0 | AK101: 0 | AL101: 0
K102: 0 | N102: 0 | R102: 0 | V102: 0 | W102: 0 | AA102: 0 | AB102: 0 | AF102: 0 | AG102: 0 | AK102: 0 | AL102: 0
K103: 0 | N103: 0 | R103: 0 | V103: 0 | W103: 0 | AA103: 0 | AB103: 0 | AF103: 0 | AG103: 0 | AK103: 0 | AL103: 0
K104: 0 | N104: 0 | R104: 0 | V104: 0 | W104: 0 | AA104: 0 | AB104: 0 | AF104: 0 | AG104: 0 | AK104: 0 | AL104: 0
K105: 0 | N105: 0 | R105: 0 | V105: 0 | W105: 0 | AA105: 0 | AB105: 0 | AF105: 0 | AG105: 0 | AK105: 0 | AL105: 0
K106: 0 | N106: 0 | R106: 0 | V106: 0 | W106: 0 | AA106: 0 | AB106: 0 | AF106: 0 | AG106: 0 | AK106: 0 | AL106: 0
K107: 0 | N107: 0 | R107: 0 | V107: 0 | W107: 0 | AA107: 0 | AB107: 0 | AF107: 0 | AG107: 0 | AK107: 0 | AL107: 0
K108: 0 | N108: 0 | R108: 0 | V108: 0 | W108: 0 | AA108: 0 | AB108: 0 | AF108: 0 | AG108: 0 | AK108: 0 | AL108: 0
K109: 0 | N109: 0 | R109: 0 | V109: 0 | W109: 0 | AA109: 0 | AB109: 0 | AF109: 0 | AG109: 0 | AK109: 0 | AL109: 0
K110: 0 | N110: 0 | R110: 0 | V110: 0 | W110: 0 | AA110: 0 | AB110: 0 | AF110: 0 | AG110: 0 | AK110: 0 | AL110: 0
K111: 0 | N111: 0 | R111: 0 | V111: 0 | W111: 0 | AA111: 0 | AB111: 0 | AF111: 0 | AG111: 0 | AK111: 0 | AL111: 0
K112: 0 | N112: 0 | R112: 0 | V112: 0 | W112: 0 | AA112: 0 | AB112: 0 | AF112: 0 | AG112: 0 | AK112: 0 | AL112: 0
K113: 0 | M113: =Q113-P113*N113 ->  | N113: 0 | R113: 0 | V113: 0 | W113: 0 | AA113: 0 | AB113: 0 | AF113: 0 | AG113: 0 | AK113: 0 | AL113: 0
K114: 0 | N114: 0 | R114: 0 | V114: 0 | W114: 0 | AA114: 0 | AB114: 0 | AF114: 0 | AG114: 0 | AK114: 0 | AL114: 0
K115: 0 | N115: 0 | R115: 0 | V115: 0 | W115: 0 | AA115: 0 | AB115: 0 | AF115: 0 | AG115: 0 | AK115: 0 | AL115: 0
K116: 0 | N116: 0 | R116: 0 | V116: 0 | W116: 0 | AA116: 0 | AB116: 0 | AF116: 0 | AG116: 0 | AK116: 0 | AL116: 0
K117: 0 | N117: 0 | R117: 0 | V117: 0 | W117: 0 | AA117: 0 | AB117: 0 | AF117: 0 | AG117: 0 | AK117: 0 | AL117: 0
K118: 0 | N118: 0 | R118: 0 | V118: 0 | W118: 0 | AA118: 0 | AB118: 0 | AF118: 0 | AG118: 0 | AK118: 0 | AL118: 0
K119: 0 | N119: 0 | R119: 0 | V119: 0 | W119: 0 | AA119: 0 | AB119: 0 | AF119: 0 | AG119: 0 | AK119: 0 | AL119: 0
K120: 0 | N120: 0 | R120: 0 | V120: 0 | W120: 0 | AA120: 0 | AB120: 0 | AF120: 0 | AG120: 0 | AK120: 0 | AL120: 0
K121: 0 | N121: 0 | R121: 0 | V121: 0 | W121: 0 | AA121: 0 | AB121: 0 | AF121: 0 | AG121: 0 | AK121: 0 | AL121: 0
K122: 0 | N122: 0 | R122: 0 | V122: 0 | W122: 0 | AA122: 0 | AB122: 0 | AF122: 0 | AG122: 0 | AK122: 0 | AL122: 0
K123: 0 | N123: 0 | R123: 0 | V123: 0 | W123: 0 | AA123: 0 | AB123: 0 | AF123: 0 | AG123: 0 | AK123: 0 | AL123: 0
K124: 0 | N124: 0 | R124: 0 | V124: 0 | W124: 0 | AA124: 0 | AB124: 0 | AF124: 0 | AG124: 0 | AK124: 0 | AL124: 0
K125: 0 | N125: 0 | R125: 0 | V125: 0 | W125: 0 | AA125: 0 | AB125: 0 | AF125: 0 | AG125: 0 | AK125: 0 | AL125: 0
K126: 0 | N126: 0 | R126: 0 | V126: 0 | W126: 0 | AA126: 0 | AB126: 0 | AF126: 0 | AG126: 0 | AK126: 0 | AL126: 0
K127: 0 | N127: 0 | R127: 0 | V127: 0 | W127: 0 | AA127: 0 | AB127: 0 | AF127: 0 | AG127: 0 | AK127: 0 | AL127: 0
K128: 0 | N128: 0 | R128: 0 | V128: 0 | W128: 0 | AA128: 0 | AB128: 0 | AF128: 0 | AG128: 0 | AK128: 0 | AL128: 0
K129: 0 | N129: 0 | R129: 0 | V129: 0 | W129: 0 | AA129: 0 | AB129: 0 | AF129: 0 | AG129: 0 | AK129: 0 | AL129: 0
K130: 0 | N130: 0 | R130: 0 | V130: 0 | W130: 0 | AA130: 0 | AB130: 0 | AF130: 0 | AG130: 0 | AK130: 0 | AL130: 0
K131: 0 | N131: 0 | R131: 0 | V131: 0 | W131: 0 | AA131: 0 | AB131: 0 | AF131: 0 | AG131: 0 | AK131: 0 | AL131: 0
K132: 0 | N132: 0 | R132: 0 | V132: 0 | W132: 0 | AA132: 0 | AB132: 0 | AF132: 0 | AG132: 0 | AK132: 0 | AL132: 0
K133: 0 | N133: 0 | R133: 0 | V133: 0 | W133: 0 | AA133: 0 | AB133: 0 | AF133: 0 | AG133: 0 | AK133: 0 | AL133: 0
K134: 0 | N134: 0 | R134: 0 | V134: 0 | W134: 0 | AA134: 0 | AB134: 0 | AF134: 0 | AG134: 0 | AK134: 0 | AL134: 0
K135: 0 | N135: 0 | R135: 0 | V135: 0 | W135: 0 | AA135: 0 | AB135: 0 | AF135: 0 | AG135: 0 | AK135: 0 | AL135: 0
K136: 0 | N136: 0 | R136: 0 | V136: 0 | W136: 0 | AA136: 0 | AB136: 0 | AF136: 0 | AG136: 0 | AK136: 0 | AL136: 0
K137: 0 | N137: 0 | R137: 0 | V137: 0 | W137: 0 | AA137: 0 | AB137: 0 | AF137: 0 | AG137: 0 | AK137: 0 | AL137: 0
K138: 0 | N138: 0 | R138: 0 | V138: 0 | W138: 0 | AA138: 0 | AB138: 0 | AF138: 0 | AG138: 0 | AK138: 0 | AL138: 0
K139: 0 | N139: 0 | R139: 0 | V139: 0 | W139: 0 | AA139: 0 | AB139: 0 | AF139: 0 | AG139: 0 | AK139: 0 | AL139: 0
K140: 0 | N140: 0 | R140: 0 | V140: 0 | W140: 0 | AA140: 0 | AB140: 0 | AF140: 0 | AG140: 0 | AK140: 0 | AL140: 0
K141: 0 | N141: 0 | R141: 0 | V141: 0 | W141: 0 | AA141: 0 | AB141: 0 | AF141: 0 | AG141: 0 | AK141: 0 | AL141: 0
K142: 0 | N142: 0 | R142: 0 | V142: 0 | W142: 0 | AA142: 0 | AB142: 0 | AF142: 0 | AG142: 0 | AK142: 0 | AL142: 0
K143: 0 | N143: 0 | R143: 0 | V143: 0 | W143: 0 | AA143: 0 | AB143: 0 | AF143: 0 | AG143: 0 | AK143: 0 | AL143: 0
K144: 0 | N144: 0 | R144: 0 | V144: 0 | W144: 0 | AA144: 0 | AB144: 0 | AF144: 0 | AG144: 0 | AK144: 0 | AL144: 0
K145: 0 | N145: 0 | R145: 0 | V145: 0 | W145: 0 | AA145: 0 | AB145: 0 | AF145: 0 | AG145: 0 | AK145: 0 | AL145: 0
K146: 0 | N146: 0 | O146: =IF(LEN($C146)>0,DATEDIF($B146,$C146,"m"),"") ->  | R146: 0 | S146: =IF(LEN($D146)>0,DATEDIF($C146,$D146,"m"),"") ->  | U146: =IF(V146>0,V146*2,"") ->  | V146: 0 | W146: 0 | X146: =IF(LEN($E146)>0,DATEDIF($D146,$E146,"m"),"") ->  | Z146: =IF(AA146>0,AA146*2,"") ->  | AA146: 0 | AB146: 0 | AC146: =IF(LEN($F146)>0,DATEDIF($E146,$F146,"m"),"") ->  | AE146: =IF(AF146>0,AF146*2,"") ->  | AF146: 0 | AG146: 0 | AH146: =IF(LEN($G146)>0,DATEDIF($F146,$G146,"m"),"") ->  | AJ146: =IF(AK146>0,AK146*2,"") ->  | AK146: 0 | AL146: 0
K147: =AN147 -> 0 | N147: 0 | P147: =IF(LEN(O147)>0,O147*$C$2,"") ->  | Q147: =IF(R147>0,R147*2,"") ->  | R147: =IF(LEN($D147)>0,U147-T147*$N147,IF(LEN($C147)>0,H147/2,0)) -> 0 | T147: =IF(LEN(S147)>0,S147*$C$2,"") ->  | V147: =IF(LEN($E147)>0,Z147-Y147*$N147,IF(LEN($D147)>0,H147/2,0)) -> 0 | W147: =IF(AND(I147,LEN(Z147)=0),0,IF(LEN($E147)>0,Z147-Y147*$N147,IF(LEN($D147)>0,H147/2,0))) -> 0 | Y147: =IF(LEN(X147)>0,X147*$C$2,"") ->  | AA147: =IF(LEN($F147)>0,AE147-AD147*$N147,IF(LEN($E147)>0,H147/2,0)) -> 0 | AB147: =IF(AND(I147,LEN(AE147)=0),0,IF(LEN($F147)>0,AE147-AD147*$N147,IF(LEN($E147)>0,H147/2,0))) -> 0 | AD147: =IF(LEN(AC147)>0,AC147*$C$2,"") ->  | AF147: =IF(LEN($G147)>0,AJ147-AI147*$N147,IF(LEN($F147)>0,H147/2,0)) -> 0 | AG147: =IF(AND(I147,LEN(AJ147)=0),0,IF(LEN($G147)>0,AJ147-AI147*$N147,IF(LEN($F147)>0,H147/2,0))) -> 0 | AI147: =IF(LEN(AH147)>0,AH147*$C$2,"") ->  | AK147: =IF(LEN($G147)>0,H147/2,0) -> 0 | AL147: =IF(I147,0,IF(LEN($G147)>0,H147/2,0)) -> 0
K148: 0 | N148: 0 | R148: 0 | V148: 0 | W148: 0 | AA148: 0 | AB148: 0 | AF148: 0 | AG148: 0 | AK148: 0 | AL148: 0
K149: 0 | N149: 0 | R149: 0 | V149: 0 | W149: 0 | AA149: 0 | AB149: 0 | AF149: 0 | AG149: 0 | AK149: 0 | AL149: 0
K150: 0 | N150: 0 | R150: 0 | V150: 0 | W150: 0 | AA150: 0 | AB150: 0 | AF150: 0 | AG150: 0 | AK150: 0 | AL150: 0
K151: 0 | N151: 0 | R151: 0 | V151: 0 | W151: 0 | AA151: 0 | AB151: 0 | AF151: 0 | AG151: 0 | AK151: 0 | AL151: 0
K152: 0 | N152: 0 | R152: 0 | V152: 0 | W152: 0 | AA152: 0 | AB152: 0 | AF152: 0 | AG152: 0 | AK152: 0 | AL152: 0
K153: 0 | N153: 0 | R153: 0 | V153: 0 | W153: 0 | AA153: 0 | AB153: 0 | AF153: 0 | AG153: 0 | AK153: 0 | AL153: 0
K154: 0 | N154: 0 | R154: 0 | V154: 0 | W154: 0 | AA154: 0 | AB154: 0 | AF154: 0 | AG154: 0 | AK154: 0 | AL154: 0
K155: 0 | N155: 0 | R155: 0 | V155: 0 | W155: 0 | AA155: 0 | AB155: 0 | AF155: 0 | AG155: 0 | AK155: 0 | AL155: 0
K156: 0 | N156: 0 | R156: 0 | V156: 0 | W156: 0 | AA156: 0 | AB156: 0 | AF156: 0 | AG156: 0 | AK156: 0 | AL156: 0
K157: 0 | N157: 0 | R157: 0 | V157: 0 | W157: 0 | AA157: 0 | AB157: 0 | AF157: 0 | AG157: 0 | AK157: 0 | AL157: 0
K158: 0 | N158: 0 | R158: 0 | V158: 0 | W158: 0 | AA158: 0 | AB158: 0 | AF158: 0 | AG158: 0 | AK158: 0 | AL158: 0
K159: 0 | N159: 0 | R159: 0 | V159: 0 | W159: 0 | AA159: 0 | AB159: 0 | AF159: 0 | AG159: 0 | AK159: 0 | AL159: 0
K160: 0 | N160: 0 | R160: 0 | V160: 0 | W160: 0 | AA160: 0 | AB160: 0 | AF160: 0 | AG160: 0 | AK160: 0 | AL160: 0
K161: 0 | N161: 0 | R161: 0 | V161: 0 | W161: 0 | AA161: 0 | AB161: 0 | AF161: 0 | AG161: 0 | AK161: 0 | AL161: 0
K162: 0 | N162: 0 | R162: 0 | V162: 0 | W162: 0 | AA162: 0 | AB162: 0 | AF162: 0 | AG162: 0 | AK162: 0 | AL162: 0
K163: 0 | N163: 0 | R163: 0 | V163: 0 | W163: 0 | AA163: 0 | AB163: 0 | AF163: 0 | AG163: 0 | AK163: 0 | AL163: 0
K164: 0 | N164: 0 | R164: 0 | V164: 0 | W164: 0 | AA164: 0 | AB164: 0 | AF164: 0 | AG164: 0 | AK164: 0 | AL164: 0
K165: 0 | N165: 0 | R165: 0 | V165: 0 | W165: 0 | AA165: 0 | AB165: 0 | AF165: 0 | AG165: 0 | AK165: 0 | AL165: 0
K166: 0 | N166: 0 | R166: 0 | V166: 0 | W166: 0 | AA166: 0 | AB166: 0 | AF166: 0 | AG166: 0 | AK166: 0 | AL166: 0
K167: 0 | N167: 0 | R167: 0 | V167: 0 | W167: 0 | AA167: 0 | AB167: 0 | AF167: 0 | AG167: 0 | AK167: 0 | AL167: 0
K168: 0 | N168: 0 | R168: 0 | V168: 0 | W168: 0 | AA168: 0 | AB168: 0 | AF168: 0 | AG168: 0 | AK168: 0 | AL168: 0
K169: 0 | N169: 0 | R169: 0 | V169: 0 | W169: 0 | AA169: 0 | AB169: 0 | AF169: 0 | AG169: 0 | AK169: 0 | AL169: 0
K170: 0 | N170: 0 | R170: 0 | V170: 0 | W170: 0 | AA170: 0 | AB170: 0 | AF170: 0 | AG170: 0 | AK170: 0 | AL170: 0
K171: 0 | N171: 0 | R171: 0 | V171: 0 | W171: 0 | AA171: 0 | AB171: 0 | AF171: 0 | AG171: 0 | AK171: 0 | AL171: 0
K172: 0 | N172: 0 | R172: 0 | V172: 0 | W172: 0 | AA172: 0 | AB172: 0 | AF172: 0 | AG172: 0 | AK172: 0 | AL172: 0
K173: 0 | N173: 0 | R173: 0 | V173: 0 | W173: 0 | AA173: 0 | AB173: 0 | AF173: 0 | AG173: 0 | AK173: 0 | AL173: 0
K174: 0 | N174: 0 | R174: 0 | V174: 0 | W174: 0 | AA174: 0 | AB174: 0 | AF174: 0 | AG174: 0 | AK174: 0 | AL174: 0
K175: 0 | N175: 0 | R175: 0 | V175: 0 | W175: 0 | AA175: 0 | AB175: 0 | AF175: 0 | AG175: 0 | AK175: 0 | AL175: 0
K176: 0 | N176: 0 | R176: 0 | V176: 0 | W176: 0 | AA176: 0 | AB176: 0 | AF176: 0 | AG176: 0 | AK176: 0 | AL176: 0
K177: 0 | M177: =Q177-P177*N177 ->  | N177: 0 | R177: 0 | V177: 0 | W177: 0 | AA177: 0 | AB177: 0 | AF177: 0 | AG177: 0 | AK177: 0 | AL177: 0
K178: 0 | N178: 0 | R178: 0 | V178: 0 | W178: 0 | AA178: 0 | AB178: 0 | AF178: 0 | AG178: 0 | AK178: 0 | AL178: 0
K179: 0 | N179: 0 | R179: 0 | V179: 0 | W179: 0 | AA179: 0 | AB179: 0 | AF179: 0 | AG179: 0 | AK179: 0 | AL179: 0
K180: 0 | N180: 0 | R180: 0 | V180: 0 | W180: 0 | AA180: 0 | AB180: 0 | AF180: 0 | AG180: 0 | AK180: 0 | AL180: 0
K181: 0 | N181: 0 | R181: 0 | V181: 0 | W181: 0 | AA181: 0 | AB181: 0 | AF181: 0 | AG181: 0 | AK181: 0 | AL181: 0
K182: 0 | N182: 0 | R182: 0 | V182: 0 | W182: 0 | AA182: 0 | AB182: 0 | AF182: 0 | AG182: 0 | AK182: 0 | AL182: 0
K183: 0 | N183: 0 | R183: 0 | V183: 0 | W183: 0 | AA183: 0 | AB183: 0 | AF183: 0 | AG183: 0 | AK183: 0 | AL183: 0
K184: 0 | N184: 0 | R184: 0 | V184: 0 | W184: 0 | AA184: 0 | AB184: 0 | AF184: 0 | AG184: 0 | AK184: 0 | AL184: 0
K185: 0 | N185: 0 | R185: 0 | V185: 0 | W185: 0 | AA185: 0 | AB185: 0 | AF185: 0 | AG185: 0 | AK185: 0 | AL185: 0
K186: 0 | N186: 0 | R186: 0 | V186: 0 | W186: 0 | AA186: 0 | AB186: 0 | AF186: 0 | AG186: 0 | AK186: 0 | AL186: 0
K187: 0 | N187: 0 | R187: 0 | V187: 0 | W187: 0 | AA187: 0 | AB187: 0 | AF187: 0 | AG187: 0 | AK187: 0 | AL187: 0
K188: 0 | N188: 0 | R188: 0 | V188: 0 | W188: 0 | AA188: 0 | AB188: 0 | AF188: 0 | AG188: 0 | AK188: 0 | AL188: 0
K189: 0 | N189: 0 | R189: 0 | V189: 0 | W189: 0 | AA189: 0 | AB189: 0 | AF189: 0 | AG189: 0 | AK189: 0 | AL189: 0
K190: 0 | N190: 0 | R190: 0 | V190: 0 | W190: 0 | AA190: 0 | AB190: 0 | AF190: 0 | AG190: 0 | AK190: 0 | AL190: 0
K191: 0 | N191: 0 | R191: 0 | V191: 0 | W191: 0 | AA191: 0 | AB191: 0 | AF191: 0 | AG191: 0 | AK191: 0 | AL191: 0
K192: 0 | N192: 0 | R192: 0 | V192: 0 | W192: 0 | AA192: 0 | AB192: 0 | AF192: 0 | AG192: 0 | AK192: 0 | AL192: 0
K193: 0 | N193: 0 | R193: 0 | V193: 0 | W193: 0 | AA193: 0 | AB193: 0 | AF193: 0 | AG193: 0 | AK193: 0 | AL193: 0
K194: 0 | N194: 0 | R194: 0 | V194: 0 | W194: 0 | AA194: 0 | AB194: 0 | AF194: 0 | AG194: 0 | AK194: 0 | AL194: 0
K195: 0 | N195: 0 | R195: 0 | V195: 0 | W195: 0 | AA195: 0 | AB195: 0 | AF195: 0 | AG195: 0 | AK195: 0 | AL195: 0
K196: 0 | N196: 0 | R196: 0 | V196: 0 | W196: 0 | AA196: 0 | AB196: 0 | AF196: 0 | AG196: 0 | AK196: 0 | AL196: 0
K197: 0 | N197: 0 | R197: 0 | V197: 0 | W197: 0 | AA197: 0 | AB197: 0 | AF197: 0 | AG197: 0 | AK197: 0 | AL197: 0
K198: 0 | N198: 0 | R198: 0 | V198: 0 | W198: 0 | AA198: 0 | AB198: 0 | AF198: 0 | AG198: 0 | AK198: 0 | AL198: 0
K199: 0 | N199: 0 | R199: 0 | V199: 0 | W199: 0 | AA199: 0 | AB199: 0 | AF199: 0 | AG199: 0 | AK199: 0 | AL199: 0
K200: 0 | N200: 0 | R200: 0 | V200: 0 | W200: 0 | AA200: 0 | AB200: 0 | AF200: 0 | AG200: 0 | AK200: 0 | AL200: 0
K201: 0 | N201: 0 | R201: 0 | V201: 0 | W201: 0 | AA201: 0 | AB201: 0 | AF201: 0 | AG201: 0 | AK201: 0 | AL201: 0
K202: 0 | N202: 0 | R202: 0 | V202: 0 | W202: 0 | AA202: 0 | AB202: 0 | AF202: 0 | AG202: 0 | AK202: 0 | AL202: 0
... 2334 more rows
